[Event "*** Titled Tuesday Blitz"]
[Site "Chess.com"]
[Date "2020.05.12"]
[Round "7"]
[White "Gurvich_Vitaly"]
[Black "ljuks68"]
[Result "0-1"]
[WhiteElo "2546"]
[BlackElo "2397"]
[TimeControl "180+1"]
[EndTime "11:13:25 PDT"]
[Termination "ljuks68 won by resignation"]

1. e4 {[%clk 0:03:00.9]} 1... e6 {[%clk 0:02:59.9]} 2. d4 {[%clk 0:02:57.7]}
2... d5 {[%clk 0:03:00.1]} 3. Nd2 {[%clk 0:02:58]} 3... Nf6 {[%clk 0:02:58.9]}
4. e5 {[%clk 0:02:57.9]} 4... Nfd7 {[%clk 0:02:58.8]} 5. Bd3 {[%clk 0:02:58.8]}
5... c5 {[%clk 0:02:59.2]} 6. c3 {[%clk 0:02:59.7]} 6... Nc6 {[%clk 0:02:59.6]}
7. Ne2 {[%clk 0:02:59.7]} 7... cxd4 {[%clk 0:02:59.8]} 8. cxd4 {[%clk
0:03:00.6]} 8... f6 {[%clk 0:03:00.4]} 9. exf6 {[%clk 0:03:01.1]} 9... Qxf6
{[%clk 0:03:00.9]} 10. Nf3 {[%clk 0:03:01.1]} 10... h6 {[%clk 0:03:00.4]} 11.
O-O {[%clk 0:03:00.2]} 11... Bd6 {[%clk 0:03:00.6]} 12. Ng3 {[%clk 0:03:00.8]}
12... O-O {[%clk 0:03:00.8]} 13. Re1 {[%clk 0:03:00.7]} 13... Rd8 {[%clk
0:02:59.2]} 14. Bb1 {[%clk 0:02:58.8]} 14... Nf8 {[%clk 0:02:56.4]} 15. a3
{[%clk 0:02:50.7]} 15... Bd7 {[%clk 0:02:52.4]} 16. b4 {[%clk 0:02:46.3]} 16...
a6 {[%clk 0:02:51]} 17. Ra2 {[%clk 0:02:44.4]} 17... Be8 {[%clk 0:02:50.6]} 18.
Rae2 {[%clk 0:02:43.5]} 18... Rac8 {[%clk 0:02:46.9]} 19. Bb2 {[%clk 0:02:42.3]}
19... Bf7 {[%clk 0:02:42.7]} 20. Ne5 {[%clk 0:02:40.1]} 20... Bxe5 {[%clk
0:02:40.4]} 21. dxe5 {[%clk 0:02:41]} 21... Qh4 {[%clk 0:02:31.5]} 22. Qd2
{[%clk 0:02:32.4]} 22... Bg6 {[%clk 0:02:26.3]} 23. Ba2 {[%clk 0:02:30.8]} 23...
Bh7 {[%clk 0:02:18.9]} 24. h3 {[%clk 0:02:29.5]} 24... Ng6 {[%clk 0:02:14.2]}
25. Re3 {[%clk 0:02:26.3]} 25... Nf4 {[%clk 0:02:11.5]} 26. Rf3 {[%clk
0:02:24.9]} 26... Rf8 {[%clk 0:02:06.2]} 27. Bc1 {[%clk 0:02:24.1]} 27... Nxh3+
{[%clk 0:01:59.9]} 28. Kf1 {[%clk 0:02:21.8]} 28... Rxf3 {[%clk 0:01:53.7]} 29.
gxf3 {[%clk 0:02:22.7]} 29... Rf8 {[%clk 0:01:51.5]} 30. Re3 {[%clk 0:02:21.5]}
30... Nf4 {[%clk 0:01:49.7]} 31. Rc3 {[%clk 0:02:08.5]} 31... Nxe5 {[%clk
0:01:34.9]} 32. Qd4 {[%clk 0:02:04.4]} 32... Ned3 {[%clk 0:01:23.3]} 33. Be3
{[%clk 0:02:01.4]} 33... Qh3+ {[%clk 0:01:21.4]} 0-1

[Event "*** Titled Tuesday Blitz"]
[Site "Chess.com"]
[Date "2020.05.12"]
[Round "7"]
[White "Drags95"]
[Black "chessplayer9919"]
[Result "1-0"]
[WhiteElo "2718"]
[BlackElo "2487"]
[TimeControl "180+1"]
[EndTime "11:13:34 PDT"]
[Termination "Drags95 won on time"]

1. e4 {[%clk 0:03:00.9]} 1... c6 {[%clk 0:02:58.4]} 2. Nf3 {[%clk 0:02:56.9]}
2... d5 {[%clk 0:02:57.8]} 3. d3 {[%clk 0:02:57.7]} 3... dxe4 {[%clk 0:02:56.3]}
4. dxe4 {[%clk 0:02:57.6]} 4... Qxd1+ {[%clk 0:02:57.2]} 5. Kxd1 {[%clk
0:02:58.1]} 5... Bg4 {[%clk 0:02:58]} 6. Nd2 {[%clk 0:02:54.7]} 6... Nd7 {[%clk
0:02:57.4]} 7. h3 {[%clk 0:02:54.9]} 7... Bxf3+ {[%clk 0:02:55.2]} 8. Nxf3
{[%clk 0:02:54.7]} 8... O-O-O {[%clk 0:02:56.1]} 9. Bd3 {[%clk 0:02:39.6]} 9...
f6 {[%clk 0:02:44.9]} 10. Be3 {[%clk 0:02:34.4]} 10... e5 {[%clk 0:02:41.9]} 11.
Ke2 {[%clk 0:02:17.4]} 1-0

[Event "*** Titled Tuesday Blitz"]
[Site "Chess.com"]
[Date "2020.05.12"]
[Round "7"]
[White "Sven_Tica"]
[Black "Baronessa08"]
[Result "0-1"]
[WhiteElo "2634"]
[BlackElo "2472"]
[TimeControl "180+1"]
[EndTime "11:13:37 PDT"]
[Termination "Baronessa08 won by resignation"]

1. d4 {[%clk 0:03:00.9]} 1... d5 {[%clk 0:02:58.7]} 2. c4 {[%clk 0:03:01.4]}
2... dxc4 {[%clk 0:02:58.4]} 3. Nf3 {[%clk 0:03:02]} 3... Nf6 {[%clk 0:02:56.4]}
4. e3 {[%clk 0:03:02.5]} 4... e6 {[%clk 0:02:54.5]} 5. Bxc4 {[%clk 0:03:02.5]}
5... a6 {[%clk 0:02:54.7]} 6. O-O {[%clk 0:03:02.6]} 6... b5 {[%clk 0:02:53.3]}
7. Be2 {[%clk 0:03:03.2]} 7... Bb7 {[%clk 0:02:53.3]} 8. b3 {[%clk 0:03:02.5]}
8... c5 {[%clk 0:02:51.7]} 9. Bb2 {[%clk 0:03:02.8]} 9... Nc6 {[%clk 0:02:51.4]}
10. a4 {[%clk 0:03:00.3]} 10... b4 {[%clk 0:02:47.9]} 11. Nbd2 {[%clk
0:03:00.5]} 11... Be7 {[%clk 0:02:37.4]} 12. Nc4 {[%clk 0:03:00.1]} 12... O-O
{[%clk 0:02:33.7]} 13. a5 {[%clk 0:02:55.6]} 13... Nd5 {[%clk 0:02:26.1]} 14.
Qd2 {[%clk 0:02:45.2]} 14... cxd4 {[%clk 0:02:10.2]} 15. Nxd4 {[%clk 0:02:43.3]}
15... Nxd4 {[%clk 0:02:09]} 16. Bxd4 {[%clk 0:02:36.7]} 16... Nc3 {[%clk
0:01:59.7]} 17. Bf3 {[%clk 0:02:22.4]} 17... Bxf3 {[%clk 0:01:57.4]} 18. gxf3
{[%clk 0:02:23.3]} 18... Bf6 {[%clk 0:01:48.8]} 19. Bxc3 {[%clk 0:02:15.7]}
19... bxc3 {[%clk 0:01:37]} 0-1

[Event "*** Titled Tuesday Blitz"]
[Site "Chess.com"]
[Date "2020.05.12"]
[Round "7"]
[White "Robert_Chessmood"]
[Black "Bathory44"]
[Result "0-1"]
[WhiteElo "2926"]
[BlackElo "2608"]
[TimeControl "180+1"]
[EndTime "11:13:38 PDT"]
[Termination "Bathory44 won on time"]

1. e4 {[%clk 0:03:00.9]} 1... e6 {[%clk 0:02:58.5]} 2. d4 {[%clk 0:03:00.6]}
2... d5 {[%clk 0:02:59.1]} 3. Nc3 {[%clk 0:03:01.1]} 3... Nf6 {[%clk 0:02:59.1]}
4. Bg5 {[%clk 0:03:00.9]} 4... Be7 {[%clk 0:02:59.1]} 5. e5 {[%clk 0:03:01.1]}
5... Nfd7 {[%clk 0:02:59.2]} 6. h4 {[%clk 0:03:01.5]} 6... h6 {[%clk 0:02:58.7]}
7. Bxe7 {[%clk 0:03:01.2]} 7... Qxe7 {[%clk 0:02:59.6]} 8. f4 {[%clk 0:03:00.5]}
8... O-O {[%clk 0:02:46.6]} 9. Nf3 {[%clk 0:03:00.1]} 9... c5 {[%clk 0:02:47]}
10. Qd2 {[%clk 0:02:54.4]} 10... Nc6 {[%clk 0:02:47.3]} 11. O-O-O {[%clk
0:02:53]} 11... a6 {[%clk 0:02:44.4]} 12. g4 {[%clk 0:02:52.2]} 12... b5 {[%clk
0:02:41.4]} 13. g5 {[%clk 0:02:50]} 13... h5 {[%clk 0:02:18.9]} 0-1

[Event "*** Titled Tuesday Blitz"]
[Site "Chess.com"]
[Date "2020.05.12"]
[Round "7"]
[White "1f3_2g41-0"]
[Black "OhanyanEminChess"]
[Result "1-0"]
[WhiteElo "2313"]
[BlackElo "2446"]
[TimeControl "180+1"]
[EndTime "11:13:44 PDT"]
[Termination "1f3_2g41-0 won on time"]

1. e4 {[%clk 0:03:00.9]} 1... e5 {[%clk 0:02:59.6]} 2. Nf3 {[%clk 0:02:59.9]}
2... Nc6 {[%clk 0:02:59.4]} 3. Bb5 {[%clk 0:02:58.4]} 3... f5 {[%clk 0:02:59]}
4. d3 {[%clk 0:02:53.8]} 4... fxe4 {[%clk 0:02:56.1]} 5. dxe4 {[%clk 0:02:53]}
5... Nf6 {[%clk 0:02:55.5]} 6. O-O {[%clk 0:02:49.5]} 6... Bc5 {[%clk
0:02:55.6]} 7. Bg5 {[%clk 0:02:31.3]} 7... d6 {[%clk 0:02:54.4]} 8. h3 {[%clk
0:02:26.9]} 8... O-O {[%clk 0:02:53.2]} 9. Nc3 {[%clk 0:02:26.1]} 9... Kh8
{[%clk 0:02:52.5]} 10. Nd5 {[%clk 0:02:25.1]} 10... a6 {[%clk 0:02:43.6]} 11.
Bc4 {[%clk 0:02:19.5]} 11... Be6 {[%clk 0:00:55.1]} 12. Nxf6 {[%clk 0:02:09.1]}
1-0

[Event "*** Titled Tuesday Blitz"]
[Site "Chess.com"]
[Date "2020.05.12"]
[Round "7"]
[White "Hanging_pointer"]
[Black "GeorgMeier"]
[Result "0-1"]
[WhiteElo "2596"]
[BlackElo "3009"]
[TimeControl "180+1"]
[EndTime "11:13:46 PDT"]
[Termination "GeorgMeier won by resignation"]

1. d4 {[%clk 0:03:00.9]} 1... e6 {[%clk 0:02:59.8]} 2. c4 {[%clk 0:03:00.4]}
2... b6 {[%clk 0:03:00.2]} 3. Nc3 {[%clk 0:02:59.2]} 3... Bb7 {[%clk 0:03:00.5]}
4. Nf3 {[%clk 0:02:59.4]} 4... Bb4 {[%clk 0:03:01]} 5. Qc2 {[%clk 0:02:59.3]}
5... Nf6 {[%clk 0:03:00.3]} 6. e3 {[%clk 0:02:58.8]} 6... Ne4 {[%clk 0:02:55.6]}
7. Bd2 {[%clk 0:02:58.7]} 7... Bxc3 {[%clk 0:02:55.3]} 8. Bxc3 {[%clk
0:02:57.8]} 8... d6 {[%clk 0:02:55.3]} 9. Be2 {[%clk 0:02:57.7]} 9... Nd7 {[%clk
0:02:53.9]} 10. O-O {[%clk 0:02:57]} 10... Nxc3 {[%clk 0:02:54.1]} 11. Qxc3
{[%clk 0:02:57]} 11... a5 {[%clk 0:02:53.4]} 12. Nd2 {[%clk 0:02:56.8]} 12...
O-O {[%clk 0:02:51.6]} 13. Bf3 {[%clk 0:02:56.8]} 13... Bxf3 {[%clk 0:02:51.8]}
14. Nxf3 {[%clk 0:02:57.7]} 14... Nf6 {[%clk 0:02:52.4]} 15. Qd3 {[%clk
0:02:53.6]} 15... Qe7 {[%clk 0:02:46.8]} 16. e4 {[%clk 0:02:45.3]} 16... e5
{[%clk 0:02:47.1]} 17. d5 {[%clk 0:02:40.4]} 17... g6 {[%clk 0:02:44.3]} 18. b3
{[%clk 0:02:39.5]} 18... Nd7 {[%clk 0:02:36.7]} 19. a3 {[%clk 0:02:38.4]} 19...
f5 {[%clk 0:02:36.2]} 20. Nd2 {[%clk 0:02:35.9]} 20... Nc5 {[%clk 0:02:35.3]}
21. Qc2 {[%clk 0:02:35.1]} 21... Nxe4 {[%clk 0:02:32]} 22. Nxe4 {[%clk
0:02:34.6]} 22... fxe4 {[%clk 0:02:32.9]} 23. Qxe4 {[%clk 0:02:35]} 23... Rf4
{[%clk 0:02:33.3]} 24. Qc2 {[%clk 0:02:35.2]} 24... Raf8 {[%clk 0:02:29.5]} 25.
f3 {[%clk 0:02:31.7]} 25... g5 {[%clk 0:02:18.8]} 26. Rae1 {[%clk 0:02:29.4]}
26... Qf6 {[%clk 0:02:05.4]} 27. Re4 {[%clk 0:02:26.7]} 27... g4 {[%clk
0:02:00.2]} 28. Rxf4 {[%clk 0:02:24.8]} 28... Qxf4 {[%clk 0:02:00.2]} 29. Qe2
{[%clk 0:02:05]} 29... Qd4+ {[%clk 0:01:34.8]} 30. Qf2 {[%clk 0:01:48.2]} 30...
Rf4 {[%clk 0:01:32.8]} 31. Qxd4 {[%clk 0:01:46]} 31... Rxd4 {[%clk 0:01:32.6]}
32. fxg4 {[%clk 0:01:45.7]} 32... Rxg4 {[%clk 0:01:31.8]} 33. Rf3 {[%clk
0:01:46]} 33... a4 {[%clk 0:01:29.9]} 0-1

[Event "*** Titled Tuesday Blitz"]
[Site "Chess.com"]
[Date "2020.05.12"]
[Round "7"]
[White "Supernotar"]
[Black "TengisChess"]
[Result "1-0"]
[WhiteElo "2756"]
[BlackElo "2494"]
[TimeControl "180+1"]
[EndTime "11:13:51 PDT"]
[Termination "Supernotar won by resignation"]

1. d4 {[%clk 0:03:00.9]} 1... Nf6 {[%clk 0:02:59.3]} 2. c4 {[%clk 0:02:56.8]}
2... g6 {[%clk 0:02:59.1]} 3. Nc3 {[%clk 0:02:55.9]} 3... Bg7 {[%clk 0:02:59.8]}
4. e4 {[%clk 0:02:55.8]} 4... O-O {[%clk 0:03:00.7]} 5. Be2 {[%clk 0:02:56.1]}
5... c5 {[%clk 0:03:00.2]} 6. d5 {[%clk 0:02:54.9]} 6... d6 {[%clk 0:03:00.2]}
7. Nf3 {[%clk 0:02:55.3]} 7... Na6 {[%clk 0:03:01.1]} 8. O-O {[%clk 0:02:55.1]}
8... Nc7 {[%clk 0:03:01.4]} 9. a4 {[%clk 0:02:48]} 9... a6 {[%clk 0:03:01.3]}
10. Qc2 {[%clk 0:02:45.8]} 10... Rb8 {[%clk 0:03:00.9]} 11. a5 {[%clk
0:02:44.8]} 11... Bg4 {[%clk 0:02:59.1]} 12. h3 {[%clk 0:02:36.3]} 12... Bxf3
{[%clk 0:02:59]} 13. Bxf3 {[%clk 0:02:36.6]} 13... b5 {[%clk 0:02:59.9]} 14.
axb6 {[%clk 0:02:36]} 14... Rxb6 {[%clk 0:03:00.2]} 15. b3 {[%clk 0:02:33]}
15... Qb8 {[%clk 0:02:59.6]} 16. Ra3 {[%clk 0:02:31.7]} 16... Nd7 {[%clk
0:02:57.1]} 17. Be2 {[%clk 0:02:26.4]} 17... a5 {[%clk 0:02:50.8]} 18. Nb5
{[%clk 0:02:08.7]} 18... Nxb5 {[%clk 0:02:46.1]} 19. cxb5 {[%clk 0:02:08.6]}
19... Rxb5 {[%clk 0:02:35.4]} 20. Bxb5 {[%clk 0:02:06.8]} 20... Qxb5 {[%clk
0:02:36.3]} 21. Bd2 {[%clk 0:02:00.1]} 21... Ra8 {[%clk 0:02:32.3]} 22. Bc3
{[%clk 0:01:49.1]} 22... Bxc3 {[%clk 0:02:22.7]} 23. Qxc3 {[%clk 0:01:49.2]}
23... Qb4 {[%clk 0:02:23.6]} 24. Qxb4 {[%clk 0:01:10.1]} 24... cxb4 {[%clk
0:02:24.5]} 25. Ra2 {[%clk 0:01:10.5]} 25... Nc5 {[%clk 0:02:25]} 26. Rb1 {[%clk
0:01:08.5]} 26... Nxe4 {[%clk 0:02:24.3]} 27. Rba1 {[%clk 0:01:07.5]} 27... Rc8
{[%clk 0:02:11.2]} 28. Rxa5 {[%clk 0:01:07]} 28... Rc3 {[%clk 0:02:09.7]} 29.
Re1 {[%clk 0:00:56.5]} 29... Nf6 {[%clk 0:02:04.5]} 30. Rxe7 {[%clk 0:00:54.1]}
30... Nxd5 {[%clk 0:02:02.2]} 31. Rxd5 {[%clk 0:00:51.2]} 1-0

[Event "*** Titled Tuesday Blitz"]
[Site "Chess.com"]
[Date "2020.05.12"]
[Round "7"]
[White "artooon"]
[Black "GOGIEFF"]
[Result "0-1"]
[WhiteElo "2730"]
[BlackElo "2952"]
[TimeControl "180+1"]
[EndTime "11:13:54 PDT"]
[Termination "GOGIEFF won by checkmate"]

1. e4 {[%clk 0:03:00.9]} 1... c5 {[%clk 0:02:59.2]} 2. Nf3 {[%clk 0:03:01.1]}
2... d6 {[%clk 0:02:59.5]} 3. d4 {[%clk 0:03:01.6]} 3... cxd4 {[%clk 0:02:59.5]}
4. Nxd4 {[%clk 0:03:02.5]} 4... Nf6 {[%clk 0:02:59.7]} 5. Nc3 {[%clk 0:03:03.1]}
5... a6 {[%clk 0:03:00.3]} 6. Bg5 {[%clk 0:03:03.6]} 6... Nbd7 {[%clk
0:02:59.4]} 7. Bc4 {[%clk 0:03:02.7]} 7... Qa5 {[%clk 0:02:58.3]} 8. Qd2 {[%clk
0:03:01.8]} 8... e6 {[%clk 0:02:57.7]} 9. O-O {[%clk 0:03:00.9]} 9... Be7 {[%clk
0:02:55.9]} 10. f4 {[%clk 0:02:57.9]} 10... Qc5 {[%clk 0:02:50.7]} 11. Bb3
{[%clk 0:02:14.5]} 11... e5 {[%clk 0:02:50]} 12. fxe5 {[%clk 0:02:15.4]} 12...
dxe5 {[%clk 0:02:50.6]} 13. Be3 {[%clk 0:02:16.1]} 13... exd4 {[%clk 0:02:50.7]}
14. Bxd4 {[%clk 0:02:17]} 14... Qxd4+ {[%clk 0:02:48.9]} 15. Qxd4 {[%clk
0:02:12.8]} 15... Bc5 {[%clk 0:02:48.3]} 16. Qxc5 {[%clk 0:02:13]} 16... Nxc5
{[%clk 0:02:48.9]} 17. e5 {[%clk 0:02:13.8]} 17... Nxb3 {[%clk 0:02:48.9]} 18.
Rae1 {[%clk 0:02:10.8]} 18... Ng4 {[%clk 0:02:41.1]} 19. axb3 {[%clk 0:02:09.7]}
19... O-O {[%clk 0:02:40.7]} 20. Nd5 {[%clk 0:02:05.7]} 20... Be6 {[%clk
0:02:38.3]} 21. c4 {[%clk 0:02:06.1]} 21... Rad8 {[%clk 0:02:37.2]} 22. h3
{[%clk 0:02:06.5]} 22... Nh6 {[%clk 0:02:35.8]} 23. Rd1 {[%clk 0:02:06.9]} 23...
Nf5 {[%clk 0:02:30.4]} 24. g4 {[%clk 0:02:01.7]} 24... Bxd5 {[%clk 0:02:28.7]}
25. gxf5 {[%clk 0:01:59.9]} 25... Bc6 {[%clk 0:02:27]} 26. Rd6 {[%clk 0:02:00]}
26... g6 {[%clk 0:02:19.9]} 27. Rfd1 {[%clk 0:01:37.1]} 27... Rde8 {[%clk
0:02:13.9]} 28. Re1 {[%clk 0:01:32.6]} 28... gxf5 {[%clk 0:02:12.7]} 29. Rf6
{[%clk 0:01:32.8]} 29... Be4 {[%clk 0:02:11.3]} 30. Kf2 {[%clk 0:01:32.2]} 30...
Rxe5 {[%clk 0:02:11.2]} 31. Rg1+ {[%clk 0:01:32.7]} 31... Kh8 {[%clk 0:02:11.2]}
32. Kg3 {[%clk 0:01:33.2]} 32... Rg8+ {[%clk 0:01:59.9]} 33. Kf4 {[%clk
0:01:33.7]} 33... Rxg1 {[%clk 0:01:59.8]} 34. Kxe5 {[%clk 0:01:34]} 34... Kg7
{[%clk 0:02:00.4]} 35. Rb6 {[%clk 0:01:34.1]} 35... Re1 {[%clk 0:02:00.2]} 36.
Kf4 {[%clk 0:01:34]} 36... Rf1+ {[%clk 0:01:59.9]} 37. Ke5 {[%clk 0:01:34]}
37... Bh1 {[%clk 0:01:58.3]} 38. h4 {[%clk 0:01:34.2]} 38... f4 {[%clk
0:01:57.9]} 39. h5 {[%clk 0:01:34.6]} 39... h6 {[%clk 0:01:58.4]} 40. b4 {[%clk
0:01:31.2]} 40... f3 {[%clk 0:01:57.1]} 41. Rf6 {[%clk 0:01:31.4]} 41... Re1+
{[%clk 0:01:56]} 42. Kf5 {[%clk 0:01:30.4]} 42... f2 {[%clk 0:01:56.1]} 43. Kg4
{[%clk 0:01:29.9]} 43... Kxf6 {[%clk 0:01:55]} 44. Kg3 {[%clk 0:01:29.5]} 44...
f1=Q {[%clk 0:01:54.7]} 45. Kh2 {[%clk 0:01:30.1]} 45... Qg2# {[%clk 0:01:54.5]}
0-1

[Event "*** Titled Tuesday Blitz"]
[Site "Chess.com"]
[Date "2020.05.12"]
[Round "7"]
[White "CrushingKings"]
[Black "Lestofante90"]
[Result "1-0"]
[WhiteElo "2499"]
[BlackElo "2635"]
[TimeControl "180+1"]
[EndTime "11:14:09 PDT"]
[Termination "CrushingKings won by resignation"]

1. e4 {[%clk 0:03:00.9]} 1... c6 {[%clk 0:02:50.9]} 2. Nf3 {[%clk 0:02:58.2]}
2... d5 {[%clk 0:02:51.3]} 3. Nc3 {[%clk 0:02:57.4]} 3... g6 {[%clk 0:02:49.3]}
4. d4 {[%clk 0:02:53.9]} 4... Bg7 {[%clk 0:02:48.6]} 5. h3 {[%clk 0:02:54.4]}
5... f6 {[%clk 0:02:47.4]} 6. Bd3 {[%clk 0:02:51.2]} 6... Nh6 {[%clk 0:02:46.6]}
7. Be3 {[%clk 0:02:49]} 7... Nf7 {[%clk 0:02:46.7]} 8. Qd2 {[%clk 0:02:48.5]}
8... O-O {[%clk 0:02:45.8]} 9. O-O-O {[%clk 0:02:48.4]} 9... b5 {[%clk
0:02:40.5]} 10. h4 {[%clk 0:02:40.8]} 10... Bg4 {[%clk 0:02:39.6]} 11. h5 {[%clk
0:02:39.8]} 11... Bxh5 {[%clk 0:02:36.4]} 12. Rxh5 {[%clk 0:02:39.9]} 12... gxh5
{[%clk 0:02:36.5]} 13. Rh1 {[%clk 0:02:36.9]} 13... b4 {[%clk 0:02:31.5]} 14.
Ne2 {[%clk 0:02:33.3]} 14... dxe4 {[%clk 0:02:24.6]} 15. Bxe4 {[%clk 0:02:32.4]}
15... Nd6 {[%clk 0:02:24.6]} 16. Bd3 {[%clk 0:02:29.2]} 16... Qa5 {[%clk
0:02:21.9]} 17. Kb1 {[%clk 0:02:27.6]} 17... Nd7 {[%clk 0:02:05.2]} 18. Ng3
{[%clk 0:02:02.2]} 18... f5 {[%clk 0:01:52.1]} 19. Rxh5 {[%clk 0:01:48.5]} 19...
Nf6 {[%clk 0:01:46]} 20. Rg5 {[%clk 0:01:39.5]} 20... h6 {[%clk 0:01:41.4]} 21.
Rxg7+ {[%clk 0:01:37.7]} 21... Kxg7 {[%clk 0:01:40.8]} 22. Bxh6+ {[%clk
0:01:38.3]} 22... Kf7 {[%clk 0:01:41.2]} 23. Ne5+ {[%clk 0:01:33.5]} 23... Ke8
{[%clk 0:01:32.3]} 24. Bxf8 {[%clk 0:01:32.9]} 24... Kxf8 {[%clk 0:01:32.4]} 25.
Qh6+ {[%clk 0:01:31.1]} 25... Kg8 {[%clk 0:01:28.6]} 26. Bc4+ {[%clk 0:01:08.6]}
26... Nd5 {[%clk 0:01:24.1]} 27. Nh5 {[%clk 0:01:04.9]} 1-0

[Event "*** Titled Tuesday Blitz"]
[Site "Chess.com"]
[Date "2020.05.12"]
[Round "7"]
[White "Anton_Demchenko"]
[Black "Poghosyan_Suren"]
[Result "1-0"]
[WhiteElo "2815"]
[BlackElo "2502"]
[TimeControl "180+1"]
[EndTime "11:14:14 PDT"]
[Termination "Anton_Demchenko won on time"]

1. d4 {[%clk 0:03:00.9]} 1... Nf6 {[%clk 0:02:56.6]} 2. Nf3 {[%clk 0:03:01.3]}
2... c5 {[%clk 0:02:54.4]} 3. d5 {[%clk 0:03:01.2]} 3... e6 {[%clk 0:02:53.4]}
4. Nc3 {[%clk 0:03:01.7]} 4... exd5 {[%clk 0:02:52.3]} 5. Nxd5 {[%clk
0:03:02.1]} 5... Nxd5 {[%clk 0:02:53.2]} 6. Qxd5 {[%clk 0:03:02.8]} 6... Be7
{[%clk 0:02:53.9]} 7. e4 {[%clk 0:03:03.4]} 7... d6 {[%clk 0:02:53.8]} 8. Bc4
{[%clk 0:03:03.5]} 8... O-O {[%clk 0:02:52]} 9. O-O {[%clk 0:03:03.4]} 9... Be6
{[%clk 0:02:48.1]} 10. Qd3 {[%clk 0:02:47.7]} 10... Nc6 {[%clk 0:02:39.3]} 11.
c3 {[%clk 0:02:47]} 11... Ne5 {[%clk 0:02:37.2]} 12. Nxe5 {[%clk 0:02:45.8]}
12... dxe5 {[%clk 0:02:38.1]} 13. Qe2 {[%clk 0:02:44.3]} 13... Bxc4 {[%clk
0:02:31.3]} 14. Qxc4 {[%clk 0:02:45.2]} 14... Qb6 {[%clk 0:02:32]} 15. a4 {[%clk
0:01:48.5]} 1-0

[Event "*** Titled Tuesday Blitz"]
[Site "Chess.com"]
[Date "2020.05.12"]
[Round "7"]
[White "CyberneticLion"]
[Black "Mimsychess"]
[Result "1-0"]
[WhiteElo "2533"]
[BlackElo "2332"]
[TimeControl "180+1"]
[EndTime "11:14:29 PDT"]
[Termination "CyberneticLion won by resignation"]

1. e4 {[%clk 0:03:00.9]} 1... e5 {[%clk 0:02:58.4]} 2. Nf3 {[%clk 0:02:59.3]}
2... Nc6 {[%clk 0:02:58.5]} 3. d4 {[%clk 0:02:58.4]} 3... exd4 {[%clk
0:02:58.1]} 4. Nxd4 {[%clk 0:02:59.3]} 4... Nf6 {[%clk 0:02:55.3]} 5. Nc3 {[%clk
0:02:58.5]} 5... Bc5 {[%clk 0:02:50.5]} 6. Be3 {[%clk 0:02:57.9]} 6... Bb6
{[%clk 0:02:50.4]} 7. Nf5 {[%clk 0:02:58.2]} 7... Bxe3 {[%clk 0:02:48.6]} 8.
Nxe3 {[%clk 0:02:59.1]} 8... d6 {[%clk 0:02:48.3]} 9. Qd2 {[%clk 0:02:53]} 9...
O-O {[%clk 0:02:46.3]} 10. O-O-O {[%clk 0:02:53.3]} 10... Re8 {[%clk 0:02:46.8]}
11. f3 {[%clk 0:02:53.5]} 11... a6 {[%clk 0:02:45.7]} 12. g4 {[%clk 0:02:51.9]}
12... b5 {[%clk 0:02:38.5]} 13. h4 {[%clk 0:02:48.8]} 13... b4 {[%clk
0:02:31.5]} 14. Ncd5 {[%clk 0:02:48.7]} 14... Nxd5 {[%clk 0:02:30.3]} 15. Nxd5
{[%clk 0:02:49.6]} 15... Be6 {[%clk 0:02:26.2]} 16. Nxb4 {[%clk 0:02:39.1]}
16... Nxb4 {[%clk 0:02:19.4]} 17. Qxb4 {[%clk 0:02:40]} 17... Rb8 {[%clk
0:02:18.9]} 18. Qa3 {[%clk 0:02:36.6]} 18... Qf6 {[%clk 0:02:17.6]} 19. Be2
{[%clk 0:01:57.9]} 19... Rb6 {[%clk 0:02:03.4]} 20. Kb1 {[%clk 0:01:55.9]} 20...
Reb8 {[%clk 0:02:01.1]} 21. b3 {[%clk 0:01:53.1]} 21... Qf4 {[%clk 0:01:46.1]}
22. Qc1 {[%clk 0:01:52]} 22... Qe5 {[%clk 0:01:41.2]} 23. h5 {[%clk 0:01:41.1]}
23... Qa5 {[%clk 0:01:36.8]} 24. Qb2 {[%clk 0:01:29.4]} 24... h6 {[%clk
0:01:33]} 25. f4 {[%clk 0:01:27.7]} 25... f6 {[%clk 0:01:22.8]} 26. Rhg1 {[%clk
0:01:19.3]} 26... Rc6 {[%clk 0:01:09.9]} 27. g5 {[%clk 0:01:17.7]} 27... hxg5
{[%clk 0:01:09.5]} 28. fxg5 {[%clk 0:01:16.9]} 28... fxg5 {[%clk 0:01:09.9]} 29.
h6 {[%clk 0:01:17.4]} 29... Qe5 {[%clk 0:01:09.1]} 30. Qxe5 {[%clk 0:01:14.5]}
30... dxe5 {[%clk 0:01:10]} 31. Rxg5 {[%clk 0:01:15]} 1-0

[Event "*** Titled Tuesday Blitz"]
[Site "Chess.com"]
[Date "2020.05.12"]
[Round "7"]
[White "tamarozi99"]
[Black "The_Machine04"]
[Result "1-0"]
[WhiteElo "1991"]
[BlackElo "2296"]
[TimeControl "180+1"]
[EndTime "11:14:47 PDT"]
[Termination "tamarozi99 won by resignation"]

1. e4 {[%clk 0:03:00.9]} 1... d6 {[%clk 0:03:00.1]} 2. d4 {[%clk 0:03:00.2]}
2... Nf6 {[%clk 0:03:00]} 3. Nc3 {[%clk 0:02:59.5]} 3... e5 {[%clk 0:03:00.6]}
4. Nf3 {[%clk 0:02:52.6]} 4... Nbd7 {[%clk 0:02:58]} 5. dxe5 {[%clk 0:02:51.6]}
5... dxe5 {[%clk 0:02:58.9]} 6. Bc4 {[%clk 0:02:50.8]} 6... Bc5 {[%clk
0:02:56.7]} 7. O-O {[%clk 0:02:45.1]} 7... O-O {[%clk 0:02:55.5]} 8. Bg5 {[%clk
0:02:44.8]} 8... c6 {[%clk 0:02:53.6]} 9. a4 {[%clk 0:02:40.5]} 9... a5 {[%clk
0:02:52.8]} 10. Qe2 {[%clk 0:02:39.8]} 10... h6 {[%clk 0:02:52.1]} 11. Bh4
{[%clk 0:02:39.2]} 11... Qc7 {[%clk 0:02:51.3]} 12. Rfd1 {[%clk 0:02:33.5]}
12... Nh5 {[%clk 0:02:47.5]} 13. Qf1 {[%clk 0:02:04.2]} 13... Nf4 {[%clk
0:02:44.1]} 14. Ne2 {[%clk 0:02:03.5]} 14... Ng6 {[%clk 0:02:41.9]} 15. Bg3
{[%clk 0:02:00.5]} 15... Nf6 {[%clk 0:02:41.5]} 16. Ned4 {[%clk 0:01:49.9]}
16... Bg4 {[%clk 0:02:34.8]} 17. Nf5 {[%clk 0:01:45.3]} 17... Bxf3 {[%clk
0:02:27.2]} 18. gxf3 {[%clk 0:01:45.2]} 18... Ne7 {[%clk 0:02:20.1]} 19. Qh3
{[%clk 0:01:30.9]} 19... Rad8 {[%clk 0:01:57.8]} 20. Nxh6+ {[%clk 0:01:25.9]}
20... gxh6 {[%clk 0:01:54.8]} 21. Qxh6 {[%clk 0:01:26.1]} 21... Nh7 {[%clk
0:01:51.7]} 22. Bh4 {[%clk 0:01:20.5]} 22... Rxd1+ {[%clk 0:01:31.4]} 23. Rxd1
{[%clk 0:01:19.6]} 23... Rd8 {[%clk 0:01:32.3]} 24. Bxf7+ {[%clk 0:01:02.3]}
24... Kxf7 {[%clk 0:01:19.6]} 25. Qxh7+ {[%clk 0:01:02.3]} 25... Kf8 {[%clk
0:01:08.9]} 26. Qh8+ {[%clk 0:01:02.3]} 26... Kf7 {[%clk 0:00:57.2]} 27. Rxd8
{[%clk 0:00:57.2]} 1-0